[Event "Titled Tuesday Blitz September 14 2021"]
[White "Pandey Srishti"]
[Black "Maly, Alexey"]
[WhiteFideId "35093290"]
[BlackFideId "14103184"]
[WhiteElo "1816"]
[BlackElo "2250"]
[Result "0-1"]
[Round "08"]
[TimeControl "180+1"]
[Date "2021.09.15"]
[WhiteClock "0:00:20"]
[BlackClock "0:00:17"]

1. d4 {[%clk 0:03:00]}  d5 {[%clk 0:02:56]} 2. c4 {[%clk 0:03:00]}  dxc4 {[%clk 0:02:56]} 3. e3 {[%clk 0:02:56]}  Nf6 {[%clk 0:02:56]} 4. Nf3 {[%clk 0:02:54]}  e6 {[%clk 0:02:56]} 5. Bxc4 {[%clk 0:02:53]}  a6 {[%clk 0:02:56]} 6. O-O {[%clk 0:02:51]}  b5 {[%clk 0:02:56]} 7. Bd3 {[%clk 0:02:49]}  Bb7 {[%clk 0:02:56]} 8. a4 {[%clk 0:02:47]}  b4 {[%clk 0:02:57]} 9. Nbd2 {[%clk 0:02:45]}  Nbd7 {[%clk 0:02:57]} 10. e4 {[%clk 0:02:45]}  Be7 {[%clk 0:02:56]} 11. Qe2 {[%clk 0:02:44]}  c5 {[%clk 0:02:56]} 12. Nc4 {[%clk 0:02:39]}  cxd4 {[%clk 0:02:54]} 13. Nxd4 {[%clk 0:02:34]}  Nc5 {[%clk 0:02:49]} 14. Be3 {[%clk 0:02:25]}  Nxd3 {[%clk 0:02:46]} 15. Qxd3 {[%clk 0:02:26]}  Bxe4 {[%clk 0:02:43]} 16. Qe2 {[%clk 0:02:17]}  O-O {[%clk 0:02:40]} 17. Rfd1 {[%clk 0:02:16]}  Bd5 {[%clk 0:02:36]} 18. Nc6 {[%clk 0:02:12]}  Qc7 {[%clk 0:02:32]} 19. Nxe7+ {[%clk 0:02:04]}  Qxe7 {[%clk 0:02:33]} 20. Nb6 {[%clk 0:02:04]}  Rab8 {[%clk 0:01:53]} 21. Bd4 {[%clk 0:02:01]}  Bxg2 {[%clk 0:01:35]} 22. Kxg2 {[%clk 0:01:52]}  Rxb6 {[%clk 0:01:34]} 23. Bxb6 {[%clk 0:01:51]}  Qb7+ {[%clk 0:01:33]} 24. Qf3 {[%clk 0:01:51]}  Qxb6 {[%clk 0:01:33]} 25. a5 {[%clk 0:01:50]}  Qb5 {[%clk 0:01:26]} 26. Rd6 {[%clk 0:01:49]}  Nd5 {[%clk 0:01:24]} 27. Kh1 {[%clk 0:01:30]}  g6 {[%clk 0:01:19]} 28. h4 {[%clk 0:01:21]}  h5 {[%clk 0:01:15]} 29. Rg1 {[%clk 0:01:18]}  Qc4 {[%clk 0:00:58]} 30. Qxh5 {[%clk 0:01:09]}  Qe4+ {[%clk 0:00:58]} 31. f3 {[%clk 0:01:09]}  Qf4 {[%clk 0:00:48]} 32. Rxe6 {[%clk 0:01:05]}  Nf6 {[%clk 0:00:44]} 33. Rxf6 {[%clk 0:00:20]}  Qxf6 {[%clk 0:00:43]} 34. b3 {[%clk 0:00:19]}  Kg7 {[%clk 0:00:32]} 35. Qg4 {[%clk 0:00:18]}  Rh8 {[%clk 0:00:29]} 36. h5 {[%clk 0:00:18]}  Qe5 {[%clk 0:00:24]} 37. Kg2 {[%clk 0:00:16]}  Rxh5 {[%clk 0:00:23]} 38. Kf2 {[%clk 0:00:14]}  Rh2+ {[%clk 0:00:20]} 39. Rg2 {[%clk 0:00:12]}  Qb2+ {[%clk 0:00:20]} 40. Kf1 {[%clk 0:00:11]}  Qxg2+ {[%clk 0:00:19]} 41. Qxg2 {[%clk 0:00:12]}  Rxg2 {[%clk 0:00:19]} 42. Kxg2 {[%clk 0:00:12]}  Kf6 {[%clk 0:00:19]} 43. f4 {[%clk 0:00:12]}  Kf5 {[%clk 0:00:19]} 44. Kf3 {[%clk 0:00:12]}  f6 {[%clk 0:00:19]} 45. Ke3 {[%clk 0:00:12]}  g5 {[%clk 0:00:18]} 46. fxg5 {[%clk 0:00:11]}  fxg5 {[%clk 0:00:19]} 47. Kd4 {[%clk 0:00:11]}  g4 {[%clk 0:00:19]} 48. Kc4 {[%clk 0:00:12]}  g3 {[%clk 0:00:19]} 49. Kc5 {[%clk 0:00:12]}  g2 {[%clk 0:00:19]} 50. Kb6 {[%clk 0:00:13]}  g1=Q+ {[%clk 0:00:19]} 51. Kxa6 {[%clk 0:00:14]}  Qc5 {[%clk 0:00:18]} 52. Kb7 {[%clk 0:00:13]}  Qxa5 {[%clk 0:00:18]} 53. Kc6 {[%clk 0:00:13]}  Qa3 {[%clk 0:00:18]} 54. Kb7 {[%clk 0:00:14]}  Qxb3 {[%clk 0:00:18]} 55. Ka8 {[%clk 0:00:15]}  Qc3 {[%clk 0:00:17]} 56. Ka7 {[%clk 0:00:16]}  b3 {[%clk 0:00:17]} 57. Ka8 {[%clk 0:00:17]}  Qb4 {[%clk 0:00:16]} 58. Ka7 {[%clk 0:00:18]}  b2 {[%clk 0:00:16]} 59. Ka8 {[%clk 0:00:19]}  b1=Q {[%clk 0:00:16]} 60. Ka7 {[%clk 0:00:20]}  Qa1# {[%clk 0:00:17]} 0-1


[Site "https://www.chess.com"]

[Event "Titled Tuesday Blitz September 14 2021"]
[White "Rastbod, Ali"]
[Black "Jones, Gawain C B"]
[WhiteFideId "12567477"]
[BlackFideId "409561"]
[WhiteElo "2226"]
[BlackElo "2657"]
[Result "1-0"]
[Round "08"]
[TimeControl "180+1"]
[Date "2021.09.15"]
[WhiteClock "0:00:10"]
[BlackClock "0:00:10"]

1. c4 {[%clk 0:02:57]}  g6 {[%clk 0:02:59]} 2. d4 {[%clk 0:02:54]}  Bg7 {[%clk 0:02:59]} 3. Nf3 {[%clk 0:02:54]}  Nf6 {[%clk 0:02:59]} 4. g3 {[%clk 0:02:54]}  c5 {[%clk 0:02:59]} 5. dxc5 {[%clk 0:02:52]}  Na6 {[%clk 0:02:59]} 6. Bg2 {[%clk 0:02:50]}  Nxc5 {[%clk 0:02:59]} 7. O-O {[%clk 0:02:50]}  O-O {[%clk 0:02:59]} 8. Nc3 {[%clk 0:02:50]}  b6 {[%clk 0:02:59]} 9. Nd4 {[%clk 0:02:49]}  Bb7 {[%clk 0:02:59]} 10. Bxb7 {[%clk 0:02:48]}  Nxb7 {[%clk 0:03:00]} 11. b3 {[%clk 0:02:45]}  Rc8 {[%clk 0:02:49]} 12. e4 {[%clk 0:02:37]}  Nc5 {[%clk 0:02:42]} 13. Re1 {[%clk 0:02:24]}  d6 {[%clk 0:02:42]} 14. Bb2 {[%clk 0:02:20]}  Ng4 {[%clk 0:02:39]} 15. Qxg4 {[%clk 0:01:59]}  Bxd4 {[%clk 0:02:38]} 16. Rad1 {[%clk 0:01:59]}  e5 {[%clk 0:02:37]} 17. Rxd4 {[%clk 0:01:42]}  exd4 {[%clk 0:02:37]} 18. Nd5 {[%clk 0:01:42]}  Ne6 {[%clk 0:02:36]} 19. f4 {[%clk 0:01:36]}  Re8 {[%clk 0:02:18]} 20. f5 {[%clk 0:01:33]}  Nc7 {[%clk 0:02:17]} 21. Nf4 {[%clk 0:01:20]}  Qf6 {[%clk 0:02:12]} 22. Nh5 {[%clk 0:01:08]}  Qe5 {[%clk 0:02:10]} 23. Rf1 {[%clk 0:01:07]}  Kh8 {[%clk 0:01:52]} 24. Qd1 {[%clk 0:00:56]}  Qxe4 {[%clk 0:01:39]} 25. Bxd4+ {[%clk 0:00:47]}  Re5 {[%clk 0:01:39]} 26. Nf6 {[%clk 0:00:30]}  Qc6 {[%clk 0:01:38]} 27. Qd2 {[%clk 0:00:18]}  Ne8 {[%clk 0:01:26]} 28. Ng4 {[%clk 0:00:14]}  Ng7 {[%clk 0:01:20]} 29. Qh6 {[%clk 0:00:11]}  Qe4 {[%clk 0:00:17]} 30. Bxe5 {[%clk 0:00:08]}  Qxe5 {[%clk 0:00:12]} 31. Nxe5 {[%clk 0:00:07]}  dxe5 {[%clk 0:00:12]} 32. fxg6 {[%clk 0:00:08]}  fxg6 {[%clk 0:00:10]} 33. Qg5 {[%clk 0:00:08]}  Re8 {[%clk 0:00:09]} 34. Qxe5 {[%clk 0:00:08]}  Kg8 {[%clk 0:00:08]} 35. Qd5+ {[%clk 0:00:07]}  Kh8 {[%clk 0:00:09]} 36. Rf7 {[%clk 0:00:07]}  h5 {[%clk 0:00:08]} 37. Qd4 {[%clk 0:00:06]}  Rg8 {[%clk 0:00:08]} 38. Qf6 {[%clk 0:00:07]}  Kh7 {[%clk 0:00:08]} 39. Rf8 {[%clk 0:00:07]}  Rxf8 {[%clk 0:00:06]} 40. Qxf8 {[%clk 0:00:08]}  Nf5 {[%clk 0:00:05]} 41. Qf7+ {[%clk 0:00:08]}  Kh6 {[%clk 0:00:05]} 42. Qxa7 {[%clk 0:00:08]}  Nd6 {[%clk 0:00:05]} 43. Qxb6 {[%clk 0:00:09]}  Nf5 {[%clk 0:00:05]} 44. Qf2 {[%clk 0:00:08]}  Kg5 {[%clk 0:00:05]} 45. Qf4+ {[%clk 0:00:07]}  Kf6 {[%clk 0:00:06]} 46. c5 {[%clk 0:00:08]}  Ke6 {[%clk 0:00:06]} 47. c6 {[%clk 0:00:08]}  Ne7 {[%clk 0:00:06]} 48. Qe4+ {[%clk 0:00:07]}  Kd6 {[%clk 0:00:07]} 49. c7 {[%clk 0:00:08]}  Nc8 {[%clk 0:00:07]} 50. Qb7 {[%clk 0:00:08]}  Kd7 {[%clk 0:00:07]} 51. b4 {[%clk 0:00:08]}  g5 {[%clk 0:00:07]} 52. Qb8 {[%clk 0:00:09]}  Nd6 {[%clk 0:00:07]} 53. Qd8+ {[%clk 0:00:08]}  Kc6 {[%clk 0:00:08]} 54. Qxd6+ {[%clk 0:00:09]}  Kxd6 {[%clk 0:00:08]} 55. c8=Q {[%clk 0:00:10]}  Ke5 {[%clk 0:00:09]} 56. Qc5+ {[%clk 0:00:10]}  Ke4 {[%clk 0:00:10]} 57. Qxg5 {[%clk 0:00:10]}  Kf3 {[%clk 0:00:09]} 58. Qxh5+ {[%clk 0:00:10]}  Ke4 {[%clk 0:00:10]} 1-0


[Site "https://www.chess.com"]

[Event "Titled Tuesday Blitz September 14 2021"]
[White "Sonis, Francesco"]
[Black "Taboas Rodriguez, Daniel"]
[WhiteFideId "895733"]
[BlackFideId "2208466"]
[WhiteElo "2373"]
[BlackElo "2429"]
[Result "1-0"]
[Round "08"]
[TimeControl "180+1"]
[Date "2021.09.15"]
[WhiteClock "0:00:19"]
[BlackClock "0:00:03"]

1. c4 {[%clk 0:03:00]}  Nf6 {[%clk 0:02:57]} 2. Nc3 {[%clk 0:02:56]}  g6 {[%clk 0:02:57]} 3. g3 {[%clk 0:02:54]}  Bg7 {[%clk 0:02:57]} 4. Bg2 {[%clk 0:02:54]}  O-O {[%clk 0:02:58]} 5. e4 {[%clk 0:02:53]}  c5 {[%clk 0:02:58]} 6. Nge2 {[%clk 0:02:52]}  Nc6 {[%clk 0:02:58]} 7. d3 {[%clk 0:02:52]}  d6 {[%clk 0:02:57]} 8. h3 {[%clk 0:02:52]}  Ne8 {[%clk 0:02:56]} 9. Be3 {[%clk 0:02:52]}  Nc7 {[%clk 0:02:55]} 10. d4 {[%clk 0:02:51]}  cxd4 {[%clk 0:02:54]} 11. Nxd4 {[%clk 0:02:52]}  Ne6 {[%clk 0:02:51]} 12. Nde2 {[%clk 0:02:50]}  Bd7 {[%clk 0:02:41]} 13. O-O {[%clk 0:02:49]}  a6 {[%clk 0:02:40]} 14. Rc1 {[%clk 0:02:49]}  Rb8 {[%clk 0:02:38]} 15. a4 {[%clk 0:02:46]}  Ne5 {[%clk 0:02:27]} 16. Nd5 {[%clk 0:02:39]}  b5 {[%clk 0:02:15]} 17. axb5 {[%clk 0:02:37]}  axb5 {[%clk 0:02:16]} 18. b3 {[%clk 0:02:24]}  bxc4 {[%clk 0:02:16]} 19. bxc4 {[%clk 0:02:25]}  Rc8 {[%clk 0:02:05]} 20. Nb6 {[%clk 0:02:14]}  Rb8 {[%clk 0:01:46]} 21. f4 {[%clk 0:02:07]}  Rxb6 {[%clk 0:01:03]} 22. fxe5 {[%clk 0:02:03]}  dxe5 {[%clk 0:01:02]} 23. Bxb6 {[%clk 0:01:59]}  Qxb6+ {[%clk 0:01:03]} 24. Kh2 {[%clk 0:01:59]}  Bc6 {[%clk 0:01:01]} 25. c5 {[%clk 0:01:57]}  Qb4 {[%clk 0:00:59]} 26. Nc3 {[%clk 0:01:56]}  Nd4 {[%clk 0:00:51]} 27. Nd5 {[%clk 0:01:55]}  Qb7 {[%clk 0:00:51]} 28. Qd3 {[%clk 0:01:49]}  Bb5 {[%clk 0:00:38]} 29. Qb1 {[%clk 0:01:48]}  e6 {[%clk 0:00:30]} 30. Nf6+ {[%clk 0:01:47]}  Kh8 {[%clk 0:00:22]} 31. Rf2 {[%clk 0:01:46]}  Qa6 {[%clk 0:00:21]} 32. Ra2 {[%clk 0:01:45]}  Qc6 {[%clk 0:00:20]} 33. Ng4 {[%clk 0:01:45]}  h5 {[%clk 0:00:19]} 34. Ne3 {[%clk 0:01:41]}  Bh6 {[%clk 0:00:20]} 35. Ra3 {[%clk 0:01:36]}  Ne2 {[%clk 0:00:18]} 36. Rc2 {[%clk 0:01:34]}  h4 {[%clk 0:00:18]} 37. Bf1 {[%clk 0:01:25]}  hxg3+ {[%clk 0:00:17]} 38. Kh1 {[%clk 0:01:24]}  Nd4 {[%clk 0:00:16]} 39. Rg2 {[%clk 0:00:52]}  Bf4 {[%clk 0:00:15]} 40. Bxb5 {[%clk 0:00:49]}  Nxb5 {[%clk 0:00:16]} 41. Ra5 {[%clk 0:00:46]}  Nc3 {[%clk 0:00:13]} 42. Qd3 {[%clk 0:00:41]}  Nxe4 {[%clk 0:00:12]} 43. Nd1 {[%clk 0:00:34]}  Nf2+ {[%clk 0:00:09]} 44. Nxf2 {[%clk 0:00:32]}  gxf2 {[%clk 0:00:10]} 45. Qe2 {[%clk 0:00:29]}  Be3 {[%clk 0:00:09]} 46. Kh2 {[%clk 0:00:29]}  Bd4 {[%clk 0:00:08]} 47. Rg4 {[%clk 0:00:24]}  Kg7 {[%clk 0:00:07]} 48. Rxd4 {[%clk 0:00:20]}  exd4 {[%clk 0:00:08]} 49. Qxf2 {[%clk 0:00:20]}  e5 {[%clk 0:00:06]} 50. Qf1 {[%clk 0:00:20]}  Rd8 {[%clk 0:00:06]} 51. Ra6 {[%clk 0:00:20]}  Qd5 {[%clk 0:00:02]} 52. Qf6+ {[%clk 0:00:20]}  Kg8 {[%clk 0:00:03]} 53. Rd6 {[%clk 0:00:19]} 1-0


[Site "https://www.chess.com"]

[Event "Titled Tuesday Blitz September 14 2021"]
[White "Stoyanov, Tsvetan"]
[Black "Maghsoodloo, Parham"]
[WhiteFideId "2917173"]
[BlackFideId "12539929"]
[WhiteElo "2191"]
[BlackElo "2601"]
[Result "0-1"]
[Round "08"]
[TimeControl "180+1"]
[Date "2021.09.15"]
[WhiteClock "0:00:02"]
[BlackClock "0:01:12"]

1. c4 {[%clk 0:03:00]}  e6 {[%clk 0:02:59]} 2. Nc3 {[%clk 0:03:01]}  d5 {[%clk 0:03:00]} 3. d4 {[%clk 0:03:00]}  Bb4 {[%clk 0:02:59]} 4. Nf3 {[%clk 0:02:56]}  Nf6 {[%clk 0:02:58]} 5. e3 {[%clk 0:02:54]}  O-O {[%clk 0:02:58]} 6. Bd3 {[%clk 0:02:51]}  c5 {[%clk 0:02:54]} 7. O-O {[%clk 0:02:48]}  cxd4 {[%clk 0:02:53]} 8. exd4 {[%clk 0:02:48]}  dxc4 {[%clk 0:02:53]} 9. Bxc4 {[%clk 0:02:48]}  b6 {[%clk 0:02:53]} 10. a3 {[%clk 0:02:37]}  Bxc3 {[%clk 0:02:46]} 11. bxc3 {[%clk 0:02:38]}  Bb7 {[%clk 0:02:43]} 12. Qe2 {[%clk 0:02:32]}  Nbd7 {[%clk 0:02:43]} 13. Bd3 {[%clk 0:02:30]}  Rc8 {[%clk 0:02:42]} 14. Bd2 {[%clk 0:02:25]}  Re8 {[%clk 0:02:41]} 15. Rfd1 {[%clk 0:02:08]}  Qc7 {[%clk 0:02:30]} 16. Rac1 {[%clk 0:02:05]}  e5 {[%clk 0:02:25]} 17. Nxe5 {[%clk 0:01:44]}  Nxe5 {[%clk 0:02:12]} 18. dxe5 {[%clk 0:01:45]}  Rxe5 {[%clk 0:02:12]} 19. Be3 {[%clk 0:01:10]}  Nd5 {[%clk 0:02:09]} 20. Qd2 {[%clk 0:00:53]}  Nxe3 {[%clk 0:02:07]} 21. fxe3 {[%clk 0:00:54]}  Qc5 {[%clk 0:02:05]} 22. Bf1 {[%clk 0:00:38]}  Rxe3 {[%clk 0:01:58]} 23. Kh1 {[%clk 0:00:37]}  Ree8 {[%clk 0:01:52]} 24. Qf4 {[%clk 0:00:34]}  Bc6 {[%clk 0:01:48]} 25. Qb4 {[%clk 0:00:25]}  Qf2 {[%clk 0:01:44]} 26. Qd4 {[%clk 0:00:24]}  Qf5 {[%clk 0:01:37]} 27. Bd3 {[%clk 0:00:19]}  Qg5 {[%clk 0:01:31]} 28. Bf1 {[%clk 0:00:18]}  h5 {[%clk 0:01:30]} 29. Qd2 {[%clk 0:00:16]}  Qg6 {[%clk 0:01:30]} 30. c4 {[%clk 0:00:13]}  h4 {[%clk 0:01:30]} 31. h3 {[%clk 0:00:13]}  Qg3 {[%clk 0:01:29]} 32. Rc3 {[%clk 0:00:13]}  Qe5 {[%clk 0:01:26]} 33. Qd4 {[%clk 0:00:11]}  Qh5 {[%clk 0:01:24]} 34. c5 {[%clk 0:00:03]}  bxc5 {[%clk 0:01:23]} 35. Qd2 {[%clk 0:00:03]}  Be4 {[%clk 0:01:18]} 36. Re1 {[%clk 0:00:02]}  Rcd8 {[%clk 0:01:17]} 37. Qf2 {[%clk 0:00:02]}  Re5 {[%clk 0:01:14]} 38. Rce3 {[%clk 0:00:02]}  Rd4 {[%clk 0:01:12]} 0-1


[Site "https://www.chess.com"]

[Event "Titled Tuesday Blitz September 14 2021"]
[White "Andreikin, Dmitry"]
[Black "Moroni, Luca Jr"]
[WhiteFideId "4158814"]
[BlackFideId "865834"]
[WhiteElo "2736"]
[BlackElo "2491"]
[Result "0-1"]
[Round "09"]
[TimeControl "180+1"]
[Date "2021.09.15"]
[WhiteClock "0:00:04"]
[BlackClock "0:00:05"]

1. e4 {[%clk 0:03:00]}  e5 {[%clk 0:02:58]} 2. Nf3 {[%clk 0:03:00]}  Nc6 {[%clk 0:02:59]} 3. Nc3 {[%clk 0:03:01]}  Nf6 {[%clk 0:02:59]} 4. Bb5 {[%clk 0:03:01]}  Bd6 {[%clk 0:02:58]} 5. O-O {[%clk 0:03:00]}  O-O {[%clk 0:02:58]} 6. Re1 {[%clk 0:02:59]}  a6 {[%clk 0:02:58]} 7. Bf1 {[%clk 0:02:57]}  Re8 {[%clk 0:02:57]} 8. h3 {[%clk 0:02:36]}  Bc5 {[%clk 0:02:56]} 9. d3 {[%clk 0:02:25]}  h6 {[%clk 0:02:54]} 10. Ne2 {[%clk 0:02:13]}  d5 {[%clk 0:02:49]} 11. exd5 {[%clk 0:02:08]}  Qxd5 {[%clk 0:02:44]} 12. Nc3 {[%clk 0:02:04]}  Qd6 {[%clk 0:02:41]} 13. Be3 {[%clk 0:02:02]}  Bf5 {[%clk 0:02:32]} 14. Nd2 {[%clk 0:01:53]}  Bxe3 {[%clk 0:02:15]} 15. Rxe3 {[%clk 0:01:54]}  Rad8 {[%clk 0:02:16]} 16. Nc4 {[%clk 0:01:42]}  Qc5 {[%clk 0:02:13]} 17. Qe1 {[%clk 0:01:33]}  b5 {[%clk 0:02:12]} 18. Nd2 {[%clk 0:01:33]}  Nd4 {[%clk 0:02:12]} 19. Rc1 {[%clk 0:01:24]}  Qd6 {[%clk 0:02:01]} 20. Nce4 {[%clk 0:01:18]}  Nxe4 {[%clk 0:02:00]} 21. Nxe4 {[%clk 0:01:19]}  Bxe4 {[%clk 0:02:00]} 22. dxe4 {[%clk 0:01:11]}  Ne6 {[%clk 0:01:59]} 23. Rd3 {[%clk 0:01:07]}  Qb6 {[%clk 0:01:57]} 24. Rcd1 {[%clk 0:01:04]}  Rxd3 {[%clk 0:01:57]} 25. Rxd3 {[%clk 0:01:05]}  Rd8 {[%clk 0:01:55]} 26. Rxd8+ {[%clk 0:01:03]}  Nxd8 {[%clk 0:01:56]} 27. Qd2 {[%clk 0:00:55]}  Ne6 {[%clk 0:01:56]} 28. Qd7 {[%clk 0:00:51]}  Qd4 {[%clk 0:01:34]} 29. Qe8+ {[%clk 0:00:42]}  Nf8 {[%clk 0:01:33]} 30. Qc6 {[%clk 0:00:42]}  Qxb2 {[%clk 0:01:25]} 31. Qxa6 {[%clk 0:00:42]}  b4 {[%clk 0:01:16]} 32. Qc6 {[%clk 0:00:41]}  Qxa2 {[%clk 0:00:58]} 33. Qxc7 {[%clk 0:00:40]}  Qa1 {[%clk 0:00:58]} 34. g3 {[%clk 0:00:26]}  Qc3 {[%clk 0:00:53]} 35. Bc4 {[%clk 0:00:20]}  Qe1+ {[%clk 0:00:37]} 36. Kg2 {[%clk 0:00:20]}  Qxe4+ {[%clk 0:00:37]} 37. Kh2 {[%clk 0:00:18]}  Qf3 {[%clk 0:00:34]} 38. Kg1 {[%clk 0:00:17]}  e4 {[%clk 0:00:34]} 39. Qc5 {[%clk 0:00:11]}  Ng6 {[%clk 0:00:19]} 40. Qxb4 {[%clk 0:00:10]}  e3 {[%clk 0:00:18]} 41. Qe1 {[%clk 0:00:10]}  exf2+ {[%clk 0:00:14]} 42. Qxf2 {[%clk 0:00:11]}  Qd1+ {[%clk 0:00:14]} 43. Kg2 {[%clk 0:00:08]}  Ne5 {[%clk 0:00:14]} 44. Bb3 {[%clk 0:00:07]}  Qd6 {[%clk 0:00:10]} 45. Qe3 {[%clk 0:00:06]}  Qc6+ {[%clk 0:00:10]} 46. Kf2 {[%clk 0:00:06]}  Qd6 {[%clk 0:00:10]} 47. Qe4 {[%clk 0:00:05]}  Qd2+ {[%clk 0:00:10]} 48. Qe2 {[%clk 0:00:06]}  Qd4+ {[%clk 0:00:09]} 49. Qe3 {[%clk 0:00:06]}  Qd6 {[%clk 0:00:09]} 50. Ke2 {[%clk 0:00:06]}  g6 {[%clk 0:00:09]} 51. Qd2 {[%clk 0:00:06]}  Qc6 {[%clk 0:00:07]} 52. Qd5 {[%clk 0:00:06]}  Qa6+ {[%clk 0:00:06]} 53. Ke3 {[%clk 0:00:06]}  Qf6 {[%clk 0:00:07]} 54. c4 {[%clk 0:00:05]}  Qb6+ {[%clk 0:00:06]} 55. c5 {[%clk 0:00:05]}  Qf6 {[%clk 0:00:06]} 56. Qd6 {[%clk 0:00:05]}  Qf3+ {[%clk 0:00:05]} 57. Kd4 {[%clk 0:00:04]}  Nc6+ {[%clk 0:00:04]} 58. Kc4 {[%clk 0:00:04]}  Na5+ {[%clk 0:00:05]} 59. Kb5 {[%clk 0:00:04]}  Nxb3 {[%clk 0:00:05]} 60. c6 {[%clk 0:00:04]}  Qe2+ {[%clk 0:00:03]} 61. Kb6 {[%clk 0:00:04]}  Qe3+ {[%clk 0:00:04]} 62. Kc7 {[%clk 0:00:03]}  Qa7+ {[%clk 0:00:03]} 63. Kd8 {[%clk 0:00:03]}  Na5 {[%clk 0:00:03]} 64. c7 {[%clk 0:00:03]}  Nb7+ {[%clk 0:00:04]} 65. Ke7 {[%clk 0:00:03]}  Nxd6 {[%clk 0:00:05]} 66. Kxd6 {[%clk 0:00:03]}  Qb7 {[%clk 0:00:05]} 67. Kd7 {[%clk 0:00:04]}  Qd5+ {[%clk 0:00:05]} 0-1


[Site "https://www.chess.com"]

[Event "Titled Tuesday Blitz September 14 2021"]
[White "Bluebaum, Matthias"]
[Black "Keymer, Vincent"]
[WhiteFideId "24651516"]
[BlackFideId "12940690"]
[WhiteElo "2933"]
[BlackElo "2889"]
[Result "1-0"]
[Round "09"]
[TimeControl "180+1"]
[Date "2021.09.15"]
[WhiteClock "0:00:20"]
[BlackClock "0:00:09"]

1. d4 {[%clk 0:03:00]}  Nf6 {[%clk 0:02:59]} 2. Nf3 {[%clk 0:03:01]}  e6 {[%clk 0:02:58]} 3. Bf4 {[%clk 0:03:01]}  d5 {[%clk 0:02:59]} 4. e3 {[%clk 0:03:02]}  Bd6 {[%clk 0:02:59]} 5. Ne5 {[%clk 0:03:02]}  O-O {[%clk 0:02:58]} 6. Nd2 {[%clk 0:03:03]}  c5 {[%clk 0:02:58]} 7. c3 {[%clk 0:03:03]}  Qc7 {[%clk 0:02:55]} 8. Bd3 {[%clk 0:03:04]}  b6 {[%clk 0:02:53]} 9. Qe2 {[%clk 0:03:03]}  a5 {[%clk 0:02:53]} 10. h4 {[%clk 0:03:02]}  Ba6 {[%clk 0:02:52]} 11. Bxa6 {[%clk 0:03:02]}  Nxa6 {[%clk 0:02:53]} 12. h5 {[%clk 0:03:02]}  h6 {[%clk 0:02:52]} 13. g4 {[%clk 0:03:02]}  Nh7 {[%clk 0:02:51]} 14. a4 {[%clk 0:02:46]}  Nb8 {[%clk 0:02:33]} 15. Bg3 {[%clk 0:02:22]}  Nc6 {[%clk 0:01:49]} 16. f4 {[%clk 0:02:22]}  f6 {[%clk 0:01:44]} 17. Ng6 {[%clk 0:02:03]}  Rf7 {[%clk 0:01:34]} 18. Qf3 {[%clk 0:02:03]}  Re8 {[%clk 0:01:27]} 19. O-O {[%clk 0:02:01]}  Nf8 {[%clk 0:01:21]} 20. Nh4 {[%clk 0:01:39]}  Qd7 {[%clk 0:01:05]} 21. Kg2 {[%clk 0:01:32]}  Bc7 {[%clk 0:01:03]} 22. Rae1 {[%clk 0:01:14]}  Nh7 {[%clk 0:00:52]} 23. Ng6 {[%clk 0:01:12]}  Nf8 {[%clk 0:00:52]} 24. Nh4 {[%clk 0:01:12]}  Nh7 {[%clk 0:00:52]} 25. Nb3 {[%clk 0:01:03]}  c4 {[%clk 0:00:47]} 26. Nd2 {[%clk 0:01:03]}  Ne7 {[%clk 0:00:41]} 27. e4 {[%clk 0:00:53]}  Qxa4 {[%clk 0:00:37]} 28. exd5 {[%clk 0:00:53]}  Nxd5 {[%clk 0:00:38]} 29. Re2 {[%clk 0:00:49]}  Qc6 {[%clk 0:00:35]} 30. Kh2 {[%clk 0:00:50]}  b5 {[%clk 0:00:34]} 31. Ng6 {[%clk 0:00:50]}  Nf8 {[%clk 0:00:31]} 32. Nh4 {[%clk 0:00:50]}  Qd7 {[%clk 0:00:31]} 33. Rfe1 {[%clk 0:00:50]}  Ree7 {[%clk 0:00:26]} 34. Ne4 {[%clk 0:00:50]}  Qc8 {[%clk 0:00:24]} 35. Nc5 {[%clk 0:00:50]}  Bd6 {[%clk 0:00:23]} 36. Nxe6 {[%clk 0:00:40]}  Nxe6 {[%clk 0:00:15]} 37. Qxd5 {[%clk 0:00:40]}  Nxf4 {[%clk 0:00:16]} 38. Bxf4 {[%clk 0:00:25]}  Bxf4+ {[%clk 0:00:16]} 39. Kh3 {[%clk 0:00:26]}  Rxe2 {[%clk 0:00:14]} 40. Rxe2 {[%clk 0:00:27]}  Qd7 {[%clk 0:00:14]} 41. Ng6 {[%clk 0:00:25]}  Bd6 {[%clk 0:00:12]} 42. Qa8+ {[%clk 0:00:24]}  Bf8 {[%clk 0:00:12]} 43. Re8 {[%clk 0:00:22]}  Qd6 {[%clk 0:00:12]} 44. Ne7+ {[%clk 0:00:19]}  Kh7 {[%clk 0:00:09]} 45. Rxf8 {[%clk 0:00:20]}  Rxf8 {[%clk 0:00:06]} 46. Qxf8 {[%clk 0:00:21]}  Qe6 {[%clk 0:00:06]} 47. Nf5 {[%clk 0:00:18]}  Qd7 {[%clk 0:00:06]} 48. d5 {[%clk 0:00:18]}  b4 {[%clk 0:00:06]} 49. d6 {[%clk 0:00:19]}  bxc3 {[%clk 0:00:06]} 50. bxc3 {[%clk 0:00:20]}  Qb7 {[%clk 0:00:06]} 51. Qxg7+ {[%clk 0:00:18]}  Qxg7 {[%clk 0:00:07]} 52. Nxg7 {[%clk 0:00:19]}  a4 {[%clk 0:00:07]} 53. d7 {[%clk 0:00:19]}  a3 {[%clk 0:00:08]} 54. d8=Q {[%clk 0:00:20]}  a2 {[%clk 0:00:09]} 55. Qa5 {[%clk 0:00:20]} 1-0


[Site "https://www.chess.com"]

[Event "Titled Tuesday Blitz September 14 2021"]
[White "Bortnyk, Olexandr"]
[Black "Ajay, Karthikeyan"]
[WhiteFideId "14120828"]
[BlackFideId "35011685"]
[WhiteElo "2723"]
[BlackElo "2183"]
[Result "1-0"]
[Round "09"]
[TimeControl "180+1"]
[Date "2021.09.15"]
[WhiteClock "0:02:51"]
[BlackClock "0:01:22"]

1. d4 {[%clk 0:03:00]}  Nf6 {[%clk 0:02:59]} 2. Nc3 {[%clk 0:03:00]}  d5 {[%clk 0:02:59]} 3. Bf4 {[%clk 0:03:00]}  Bf5 {[%clk 0:02:58]} 4. e3 {[%clk 0:03:01]}  e6 {[%clk 0:02:58]} 5. Nf3 {[%clk 0:03:02]}  a6 {[%clk 0:02:55]} 6. Ne5 {[%clk 0:03:02]}  Nbd7 {[%clk 0:02:53]} 7. g4 {[%clk 0:03:03]}  Bg6 {[%clk 0:02:52]} 8. h4 {[%clk 0:03:03]}  h5 {[%clk 0:02:00]} 9. Nxg6 {[%clk 0:03:02]}  fxg6 {[%clk 0:02:01]} 10. g5 {[%clk 0:03:02]}  Ne4 {[%clk 0:01:56]} 11. Nxe4 {[%clk 0:02:59]}  dxe4 {[%clk 0:01:56]} 12. Bg2 {[%clk 0:03:00]}  c6 {[%clk 0:01:46]} 13. Bxe4 {[%clk 0:03:00]}  Kf7 {[%clk 0:01:46]} 14. Qf3 {[%clk 0:02:59]}  Kg8 {[%clk 0:01:34]} 15. Bxg6 {[%clk 0:02:59]}  Be7 {[%clk 0:01:31]} 16. Bf7+ {[%clk 0:02:52]}  Kxf7 {[%clk 0:01:27]} 17. Bc7+ {[%clk 0:02:52]}  Kg8 {[%clk 0:01:26]} 18. Bxd8 {[%clk 0:02:53]}  Rxd8 {[%clk 0:01:26]} 19. O-O-O {[%clk 0:02:51]}  Nf8 {[%clk 0:01:26]} 20. Qe4 {[%clk 0:02:51]}  Rd5 {[%clk 0:01:25]} 21. c4 {[%clk 0:02:51]}  Rf5 {[%clk 0:01:24]} 22. f4 {[%clk 0:02:51]}  g6 {[%clk 0:01:24]} 23. d5 {[%clk 0:02:50]}  cxd5 {[%clk 0:01:22]} 24. cxd5 {[%clk 0:02:51]} 1-0


[Site "https://www.chess.com"]